{"text_format":"1","workbook":"xlsx","n_sheets":3,"sheets":["Feuil1","Feuil2","Feuil3"],"not_rendered":{"charts":0,"images":0,"macros":1,"external_links":0,"defined_names":43,"comments":1,"pivot_tables":0},"unopened":[],"bounds":{"document_bytes":16777216,"sheet_cells":100000,"rows_first":2000,"rows_last":500,"rows_between":2000,"halvings":0,"cell_chars":16384,"cell_head_chars":4096},"cells_cut":0,"cells_raw":0,"read":"whole","date_system":"1900"}

{"sheet":"Feuil1","index":0,"n_rows":44,"n_cols":12,"rows_kept":44,"cut":false,"hidden":false,"merged":[]}
["Long","Nombre",null,"Long barre",null,"Long","Barre","nb barres","Barre","Contrôle","Cible","Total chutes"]
[714,1,null,3000,null,714,null,{"$f":"MAX(G:G)","v":0},1,{"$f":"SUMIF(G:G,I2,F:F)<=$D$2-$D$4","v":true},{"$f":"IF(COUNTIF(J:J,FALSE),999,H2)","v":0},{"$f":"H2*D2-SUM(F:F)","v":-22314}]
[688,14,null,"Sécurité",null,688,null,null,2,{"$f":"SUMIF(G:G,I3,F:F)<=$D$2-$D$4","v":true}]
[637,12,null,15,null,688,null,null,3,true]
[237,8,null,null,null,688,null,null,4,true]
[234,6,null,null,null,688,null,null,5,true]
[512,2,null,"Nb découpes",null,688,null,null,6,true]
[null,null,null,{"$f":"SUM(B2:B7)","v":43},null,688,null,null,7,true]
[null,null,null,null,null,688,null,null,8,true]
[null,null,null,null,null,688,null,null,9,true]
[null,null,null,null,null,688,null,null,10,true]
[null,null,null,null,null,688,null,null,11,true]
[null,null,null,null,null,688,null,null,12,true]
[null,null,null,null,null,688,null,null,13,true]
[null,null,null,null,null,688,null,null,14,true]
[null,null,null,null,null,688,null,null,15,true]
[null,null,null,null,null,637,null,null,16,true]
[null,null,null,null,null,637,null,null,17,true]
[null,null,null,null,null,637,null,null,18,true]
[null,null,null,null,null,637,null,null,19,true]
[null,null,null,null,null,637,null,null,20,true]
[null,null,null,null,null,637,null,null,21,true]
[null,null,null,null,null,637,null,null,22,true]
[null,null,null,null,null,637,null,null,23,true]
[null,null,null,null,null,637,null,null,24,true]
[null,null,null,null,null,637,null,null,25,true]
[null,null,null,null,null,637,null,null,26,true]
[null,null,null,null,null,637,null,null,27,true]
[null,null,null,null,null,237,null,null,28,true]
[null,null,null,null,null,237,null,null,29,true]
[null,null,null,null,null,237,null,null,30,true]
[null,null,null,null,null,237]
[null,null,null,null,null,237]
[null,null,null,null,null,237]
[null,null,null,null,null,237]
[null,null,null,null,null,237]
[null,null,null,null,null,234]
[null,null,null,null,null,234]
[null,null,null,null,null,234]
[null,null,null,null,null,234]
[null,null,null,null,null,234]
[null,null,null,null,null,234]
[null,null,null,null,null,512]
[null,null,null,null,null,512]

{"sheet":"Feuil2","index":1,"n_rows":9,"n_cols":3,"rows_kept":9,"cut":false,"hidden":false,"merged":[]}
["Barre","Découpes","Chute"]
[1,"637 + 637 + 637 + 237 + 237 + 512",103]
[2,"688 + 688 + 637 + 237 + 234 + 234",282]
[3,"688 + 688 + 237 + 237 + 234 + 234 + 512",170]
[4,"688 + 688 + 637 + 237 + 234",516]
[5,"688 + 688 + 688 + 637 + 234",65]
[6,"714 + 688 + 637 + 637",324]
[7,"688 + 688 + 637 + 637 + 237",113]
[8,"688 + 688 + 637 + 637 + 237",113]

{"sheet":"Feuil3","index":2,"n_rows":0,"n_cols":0,"rows_kept":0,"cut":false,"hidden":false,"merged":[]}